bitfinex/quotes_ETHUSD_20250629
["timestamp","ask_amount","ask_price","bid_price","bid_amount"]
[1751238482564,13.1851415,2511.7,2511.2,3.1856681]
[1751238482898,14.82214102,2511.7,2511.2,3.1856681]
[1751238483095,0.1984,2511.2,2510.5,3.18661621]
[1751238483392,4.3337,2511.6,2510.9,3.18603414]
[1751238483393,0.1984,2511.0,2510.9,3.18603414]
[1751238483596,1.5277,2511.6,2511.2,3.18561521]
[1751238483794,0.1984,2511.2,2511.1,3.185798]
[1751238484493,0.1984,2511.2,2511.0,3.18596167]
[1751238484698,3.18549329,2511.4,2510.8,8.227]
[1751238484877,0.1984,2511.0,2510.8,8.227]
[1751238485075,13.18566982,2511.3,2510.6,3.18648928]
[1751238485391,13.18566982,2511.3,2510.5,0.1984]
[1751238485392,0.78985524,2511.4,2510.8,3.18623546]
[1751238485605,0.78985524,2511.4,2510.7,8.214]
[1751238485606,10.78985524,2511.4,2510.7,11.40031282]
[1751238485772,13.97539967,2511.4,2510.8,3.18613719]
[1751238485962,1.7160842,2511.3,2510.8,3.18613719]
[1751238486163,1.7160842,2511.3,2510.9,3.18609786]
[1751238486360,0.1984,2510.8,2510.7,11.40036236]
[1751238486569,0.1984,2510.8,2510.7,3.18636236]
[1751238486774,0.1984,2510.8,2510.7,11.38436236]
[1751238487002,0.1984,2510.8,2510.2,0.001]
[1751238487003,3.18674314,2510.4,2510.2,0.001]
[1751238487164,25.04849535,2510.3,2510.2,0.001]
[1751238487364,25.59849535,2510.3,2510.2,0.001]
[1751238487561,14.76127431,2510.3,2510.2,0.001]
[1751238487793,17.9481444,2510.3,2510.2,0.001]
[1751238489396,25.59849535,2510.3,2510.2,0.001]
[1751238489697,15.25079705,2510.2,2509.4,0.001]
[1751238489993,18.43584934,2510.2,2509.4,0.001]
[1751238490182,21.24284934,2510.2,2509.4,0.001]
[1751238490387,29.43084934,2510.2,2509.4,0.001]
[1751238490589,14.3208,2510.2,2509.8,3.18747685]
[1751238490902,14.3208,2510.2,2509.9,3.18736402]
[1751238491104,14.3208,2510.2,2510.0,3.18722866]
[1751238491572,14.3208,2510.2,2509.9,3.18732474]
[1751238491774,14.3208,2510.2,2509.9,3.18733902]
[1751238491974,14.3208,2510.2,2510.0,3.18724461]
[1751238492200,14.3208,2510.2,2509.4,0.001]
[1751238492201,14.3208,2510.2,2509.9,3.18733972]
[1751238492586,14.3208,2510.2,2510.0,3.18724127]
[1751238493095,14.3208,2510.2,2509.9,3.1873398]
[1751238493604,14.3208,2510.2,2509.8,3.18747216]
[1751238493806,14.3208,2510.2,2509.6,3.1876721]
[1751238493807,14.3208,2510.2,2510.0,3.18718589]
[1751238494110,14.3208,2510.2,2509.8,3.18742759]
[1751238494310,14.3208,2510.2,2509.4,0.001]
[1751238494482,14.3208,2510.2,2509.7,3.18759963]
[1751238494676,14.3208,2510.2,2509.8,3.1874856]
[1751238495507,22.4708,2510.2,2509.8,3.1875012]
[1751238495676,25.65779705,2510.2,2509.6,3.18774777]
[1751238496110,25.65779705,2510.2,2509.4,3.18891355]
[1751238496111,26.20779705,2510.2,2509.5,3.1878353]
[1751238496407,26.20779705,2510.2,2509.4,3.18896186]
[1751238496612,26.20779705,2510.2,2509.5,3.18786867]
[1751238496911,26.20779705,2510.2,2509.4,3.1889382]
[1751238497477,26.20779705,2510.2,2509.5,3.18787491]
[1751238497732,22.4708,2510.2,2509.4,0.001]
[1751238497884,14.78959287,2510.2,2509.4,0.001]
[1751238498082,14.2308,2510.2,2510.0,3.1871822]
[1751238498809,17.41779705,2510.2,2509.4,0.001]
[1751238499191,25.068148,2510.2,2509.4,0.001]
[1751238499620,22.72215139,2510.2,2509.4,0.001]
[1751238499780,35.44136314,2510.2,2509.4,0.001]
[1751238499986,35.81235866,2510.2,2509.4,0.001]
[1751238500281,35.44136314,2510.2,2509.4,3.18901152]
[1751238500682,28.28951367,2510.2,2509.4,3.18898558]
[1751238500982,27.77601219,2510.2,2509.7,3.18753758]
[1751238501610,27.77601219,2510.2,2509.8,3.18750163]
[1751238501611,24.58901514,2510.2,2509.8,3.18750163]
[1751238501915,24.58901514,2510.2,2509.8,3.18749456]
[1751238502113,24.58901514,2510.2,2509.6,3.18775771]
[1751238502305,24.57301514,2510.2,2509.4,0.001]
[1751238502490,24.57301514,2510.2,2509.8,3.18743736]
[1751238502692,28.31001219,2510.2,2509.4,0.001]
[1751238502896,28.31001219,2510.2,2509.5,3.18787836]
[1751238503202,28.31001219,2510.2,2509.4,0.001]
[1751238503203,28.30501219,2510.2,2509.4,0.001]
[1751238503783,28.67543264,2510.2,2509.4,3.18899983]
[1751238503985,27.75001219,2510.2,2509.5,3.18779346]
[1751238504189,27.75001219,2510.2,2509.4,3.18896358]
[1751238504406,14.15627991,2510.2,2509.4,0.001]
[1751238504729,24.92626941,2510.2,2509.7,3.18756362]
[1751238505128,28.11326646,2510.2,2509.7,3.18756362]
[1751238505287,27.74301219,2510.2,2509.7,3.18756362]
[1751238506019,24.55601514,2510.2,2509.8,3.1874909]
[1751238506321,24.55601514,2510.2,2509.8,3.18749634]
[1751238506615,24.55301514,2510.2,2509.7,3.18757564]
[1751238507023,27.74001219,2510.2,2509.7,3.18757564]
[1751238507418,27.74001219,2510.2,2509.6,3.18769036]
[1751238507742,35.39036314,2510.2,2509.4,0.001]
[1751238507922,16.97301219,2510.2,2509.4,0.001]
[1751238508110,27.61501219,2510.2,2509.5,3.18782179]
[1751238508511,27.61501219,2510.2,2509.6,3.18775775]
[1751238509229,27.61501219,2510.2,2509.5,3.18784268]
[1751238509534,27.61501219,2510.2,2509.6,3.18771875]
[1751238509894,27.61501219,2510.2,2509.7,3.18760598]
[1751238510100,1.5982,2510.6,2509.9,3.18728959]
[1751238510294,1.5982,2510.6,2509.6,3.18771147]
[1751238510295,13.80362047,2510.5,2510.0,3.18718118]
[1751238510525,1.5982,2510.6,2509.7,3.18756596]
[1751238510826,10.0,2510.3,2509.7,3.18762361]
[1751238511039,17.983,2510.3,2509.9,3.18736349]
[1751238511328,3.18699705,2510.2,2509.7,3.18754697]
[1751238511629,7.983,2510.3,2509.7,3.18762251]
[1751238511834,7.983,2510.3,2509.9,3.18737488]
[1751238512325,10.68164927,2510.3,2509.5,1.6158]
[1751238512530,13.86858112,2510.3,2509.8,3.18749912]
[1751238512826,13.86858112,2510.3,2509.6,3.18770685]
[1751238512827,3.18699705,2510.2,2509.6,3.18770685]
[1751238513036,3.18699705,2510.2,2509.7,3.18760384]
[1751238513795,13.18699705,2510.2,2509.4,3.1889075]
[1751238514423,13.18699705,2510.2,2509.4,0.001]
[1751238514617,13.18699705,2510.2,2509.4,3.18893158]
[1751238514828,13.18699705,2510.2,2509.4,0.001]
[1751238515128,13.18699705,2510.2,2509.4,3.18898284]
[1751238515629,10.0,2510.2,2509.4,0.001]
[1751238515824,17.927,2510.2,2509.7,1.6572]
[1751238516132,17.927,2510.2,2509.8,3.18742611]
[1751238516331,10.0,2510.2,2509.8,3.18745535]
[1751238516538,17.927,2510.2,2509.8,3.18745535]
[1751238516742,10.0,2510.2,2509.8,3.18745535]
[1751238517216,10.0,2510.2,2509.7,1.6572]
[1751238517406,10.0,2510.2,2509.8,3.18748282]
[1751238517606,3.18681075,2510.4,2509.8,3.18744452]
[1751238517607,3.18682788,2510.4,2509.8,3.18744452]
[1751238517805,13.18682788,2510.4,2509.9,3.18734898]
[1751238518041,13.18693036,2510.3,2509.7,1.6572]
[1751238518243,13.18693036,2510.3,2509.7,4.84478853]
[1751238518616,13.18693036,2510.3,2509.8,3.18749423]
[1751238518812,10.0,2510.4,2509.8,3.18745758]
[1751238519036,10.0,2510.4,2509.7,1.6572]
[1751238519219,13.18674521,2510.4,2509.9,3.18731758]
[1751238519659,22.18826,2515.8,2509.9,3.18731758]
[1751238519660,4.79340794,2511.4,2510.2,1.5902]
[1751238519817,7.887,2511.3,2510.2,14.7771746]
[1751238520011,0.1984,2510.7,2510.3,0.1984]
[1751238520238,0.1984,2510.7,2510.6,3.18648928]
[1751238520747,0.1984,2510.7,2510.3,0.1984]
[1751238521118,0.1984,2510.7,2510.6,3.18648928]
[1751238521320,0.95037134,2511.1,2510.8,3.18618086]
[1751238521556,0.95037134,2511.1,2510.6,3.18648928]
[1751238521557,0.1984,2511.1,2511.0,3.18592001]
[1751238523251,0.1984,2511.1,2510.9,3.18605231]
[1751238523613,0.1984,2511.1,2511.0,3.18598168]
[1751238524052,13.18523928,2511.6,2511.1,3.18579578]
[1751238524261,0.1984,2511.3,2511.0,3.18592165]
[1751238528742,0.1984,2511.3,2511.1,3.18581688]
[1751238529041,0.1984,2511.3,2511.0,3.18593943]
[1751238529558,0.1984,2511.3,2511.1,3.18583709]
[1751238531557,0.1984,2511.3,2510.8,0.1984]
[1751238531960,0.1984,2511.3,2511.2,3.18572793]
[1751238532167,10.0,2511.6,2511.5,3.1853474]
[1751238532329,10.0,2511.6,2511.2,1.5722]
[1751238532330,0.1984,2511.7,2511.6,3.18515262]
[1751238533742,3.18611187,2512.5,2512.0,3.18465309]
[1751238533946,0.1984,2512.1,2511.9,3.18474738]
[1751238535149,0.1984,2512.1,2511.9,3.18479922]
[1751238536157,0.1984,2512.1,2512.0,3.18471337]
[1751238537736,0.002,2512.5,2512.4,3.18420633]
[1751238538155,0.2004,2512.5,2512.4,3.18420633]
[1751238538774,0.2004,2512.5,2512.0,1.6527]
[1751238538948,0.002,2512.5,2512.0,1.6527]
[1751238539271,0.1984,2512.3,2512.1,3.1845161]
[1751238539964,0.1984,2512.3,2512.2,3.18445983]
[1751238540471,0.002,2512.5,2512.4,3.18420633]
[1751238540671,0.002,2512.5,2512.1,3.1845851]
[1751238540843,0.1984,2512.3,2512.1,3.1845851]
[1751238541171,0.1984,2512.3,2512.2,3.18445983]
[1751238542043,0.2004,2512.5,2512.3,3.18422417]
[1751238542469,0.2004,2512.5,2512.2,3.18439482]
[1751238542652,0.2004,2512.5,2512.3,3.18430126]
[1751238543074,0.2004,2512.5,2512.2,3.18438967]
[1751238543640,0.2004,2512.5,2512.3,3.18433308]
[1751238544174,0.2004,2512.5,2512.3,3.18426539]
[1751238544372,0.2004,2512.5,2512.0,1.6527]
[1751238544601,0.1984,2512.1,2512.0,3.18469933]
[1751238544756,0.002,2512.5,2511.9,7.635]
[1751238545073,0.2004,2512.5,2512.4,3.18420633]
[1751238546144,0.002,2512.5,2512.4,5.03220633]
[1751238546346,0.002,2512.5,2512.1,3.18458263]
[1751238546347,0.002,2512.5,2512.1,1.6496]
[1751238546551,0.002,2512.5,2511.6,3.1851979]
[1751238546552,0.002,2512.5,2512.3,3.18424562]
[1751238546844,0.1984,2512.4,2512.3,3.18433308]
[1751238547087,0.1984,2512.4,2512.2,3.18442793]
[1751238548085,0.1984,2512.2,2512.1,3.1845866]
[1751238548384,0.002,2512.5,2512.4,3.18420633]
[1751238548544,0.002,2512.5,2512.4,3.73420633]
[1751238548750,0.002,2512.5,2512.4,3.93260633]
[1751238548951,0.002,2512.5,2512.4,3.18420633]
[1751238549165,0.002,2512.5,2512.4,10.79920633]
[1751238550760,0.002,2512.5,2512.3,3.38271485]
[1751238550968,0.002,2512.5,2512.4,10.78020633]
[1751238552803,0.002,2512.5,2512.4,3.18420633]
[1751238552952,0.002,2512.5,2512.4,10.76520633]
[1751238554487,0.002,2512.5,2512.4,3.18420633]
[1751238554899,0.1984,2512.4,2512.3,3.18427314]
[1751238555210,0.1984,2512.4,2512.0,0.1984]
[1751238555513,10.002,2512.5,2512.1,3.18456629]
[1751238555811,10.93737699,2512.5,2512.1,3.18456629]
[1751238556392,10.93737699,2512.5,2512.0,3.18464735]
[1751238556592,0.1984,2512.1,2512.0,3.18464735]
[1751238556911,0.1984,2512.1,2511.2,1.5432]
[1751238556912,11.7298,2512.1,2511.2,1.5432]
[1751238557118,0.1984,2511.9,2511.8,3.18490192]
[1751238557843,2.373,2512.4,2511.8,4.7281483]
[1751238558117,2.373,2512.4,2512.3,3.18433308]
[1751238558618,2.373,2512.4,2512.1,3.18447732]
[1751238558826,0.1984,2512.3,2512.1,3.18447732]
[1751238559321,0.1984,2512.3,2511.9,3.18478867]
[1751238559485,0.1984,2512.1,2511.9,3.18478867]
[1751238559692,0.1984,2512.1,2512.0,3.18471337]
[1751238560093,0.1984,2512.1,2511.9,3.18478422]
[1751238560418,0.1984,2512.1,2511.8,3.18484595]
[1751238560419,1.6056,2512.1,2511.7,3.18500773]
[1751238560619,0.1984,2511.8,2511.7,3.18500773]
[1751238562320,0.1984,2511.8,2511.6,3.18515631]
[1751238562619,0.1984,2511.7,2511.5,3.18530146]
[1751238562823,0.1984,2511.7,2511.4,0.1984]
[1751238563132,3.18495493,2511.9,2511.4,3.1854559]
[1751238563133,0.1984,2511.5,2511.4,3.1854559]
[1751238563521,0.1984,2511.5,2511.0,0.1984]
[1751238563722,0.1984,2511.5,2511.4,3.18547423]
[1751238567924,0.1984,2511.8,2511.4,0.1984]
[1751238568304,0.1984,2511.8,2511.5,3.18523846]
[1751238568516,0.1984,2511.6,2511.5,3.18523846]
[1751238569230,0.1984,2511.6,2510.9,4.81413161]
[1751238569430,10.0,2512.0,2511.5,3.18525358]
[1751238569633,11.71640619,2512.0,2511.6,3.18515691]
[1751238571031,11.71640619,2512.0,2511.2,10.75269643]
[1751238571234,0.1984,2511.6,2511.5,3.1853474]
[1751238571628,10.0,2512.0,2511.8,3.18487319]
[1751238571932,10.0,2512.0,2511.9,3.18484016]
[1751238572431,0.1984,2511.9,2511.3,0.1984]
[1751238573004,0.1984,2511.9,2511.8,3.18496695]
[1751238573639,0.1984,2511.9,2511.6,3.18513746]
[1751238573934,10.0,2512.0,2511.6,3.18522027]
[1751238574137,12.03487487,2512.0,2511.6,3.18522027]
[1751238574927,0.1984,2511.6,2511.5,3.18529459]
[1751238575135,15.21964782,2512.0,2511.5,3.18529459]
[1751238575357,0.1984,2511.5,2511.2,3.18566748]
[1751238575509,1.6557,2511.5,2510.7,3.18636236]
[1751238575840,1.6557,2511.5,2511.2,3.18565089]
[1751238576040,1.6557,2511.5,2511.1,3.18579645]
[1751238576228,3.05867,2511.5,2511.1,3.18579645]
[1751238576534,3.05867,2511.5,2511.2,3.18569951]
[1751238576741,3.05867,2511.5,2510.7,0.1984]
[1751238577046,0.1984,2511.1,2510.3,1.5265]
[1751238577235,3.18581785,2511.2,2510.7,3.18633911]
[1751238577432,0.1984,2510.8,2510.7,3.18633911]
[1751238578114,1.8541,2510.8,2510.6,3.18644834]
[1751238578314,1.6557,2510.8,2510.6,3.18644834]
[1751238578741,1.6557,2510.8,2510.7,3.18636236]
[1751238580366,2.337,2510.9,2510.8,3.18623546]
[1751238580712,1.5139,2511.1,2511.0,3.18598168]
[1751238580913,9.48975737,2511.3,2510.6,1.6405]
[1751238580914,2.338,2511.3,2510.6,1.6405]
[1751238581118,0.1984,2511.0,2510.9,3.18610856]
[1751238582857,1.622,2510.8,2510.5,0.1984]
[1751238583013,2.338,2510.7,2510.3,3.18677092]
[1751238583343,10.0,2510.5,2510.2,3.18691234]
[1751238583512,1.622,2510.8,2510.1,0.001]
[1751238583712,11.5028,2511.2,2510.6,3.18645357]
[1751238583943,3.8408,2511.2,2510.7,3.18623554]
[1751238584148,16.07264357,2511.2,2510.2,1.6104]
[1751238584349,13.18626192,2510.8,2510.3,3.18678947]
[1751238584516,11.5028,2510.6,2510.1,0.001]
[1751238584723,5.52467747,2510.5,2510.1,0.001]
[1751238584924,5.52463105,2510.5,2510.1,0.001]
[1751238585220,2.338,2510.5,2510.1,0.001]
[1751238585422,11.5028,2510.6,2510.1,3.18803952]
[1751238585731,2.338,2510.4,2510.2,3.18696819]
[1751238586123,11.5028,2510.6,2510.2,3.18696819]
[1751238586455,2.338,2510.5,2510.2,3.18696819]
[1751238586835,2.338,2510.5,2510.3,3.18683661]
[1751238588958,2.338,2510.5,2510.4,3.18674314]
[1751238589126,2.338,2510.5,2510.3,3.18680745]
[1751238591763,2.338,2510.5,2510.2,3.18694521]
[1751238592352,14.79681774,2510.5,2510.1,0.001]
[1751238592572,17.9835194,2510.5,2510.1,0.001]
[1751238593267,10.0,2510.3,2510.1,0.001]
[1751238597575,0.1984,2510.1,2509.9,2.6721952]
[1751238597776,10.0,2510.3,2509.9,2.6721952]
[1751238597941,12.5542498,2510.3,2509.9,2.6721952]
[1751238598378,0.1992,2509.9,2509.8,3.18744228]
[1751238599580,0.1992,2509.9,2509.7,3.18756984]
[1751238599756,15.74112556,2510.3,2509.7,3.18756984]
[1751238599940,15.74112556,2510.3,2509.7,3.18763198]
[1751238600142,0.1992,2509.7,2509.6,3.1877464]
[1751238602085,2.339,2510.2,2510.1,3.18712401]
[1751238602247,0.1984,2510.1,2509.5,1.8096]
[1751238602576,2.339,2510.2,2510.0,3.18724238]
[1751238603145,0.1992,2510.0,2509.8,3.18738199]
[1751238603462,2.339,2510.2,2509.9,3.18729295]
[1751238603660,0.2339,2510.1,2509.9,3.18729295]
[1751238604080,0.1992,2509.9,2509.8,3.18743896]
[1751238605490,2.339,2510.4,2510.2,3.18692633]
[1751238606152,0.1984,2510.2,2510.1,3.18706712]
[1751238610048,1.506,2510.9,2510.3,3.18686336]
[1751238610259,2.37879713,2511.5,2510.7,3.18624343]
[1751238610260,2.326,2511.0,2510.7,3.18624343]
[1751238610484,10.0,2510.9,2510.4,3.18663162]
[1751238610696,1.506,2511.4,2510.3,2.445348]
[1751238610852,1.506,2511.4,2510.8,3.18623546]
[1751238610853,0.1984,2510.9,2510.8,3.18623546]
[1751238612863,11.5387,2510.9,2509.4,1.6289]
[1751238613060,1.5387,2510.4,2509.4,9.1729]
[1751238613284,10.0,2510.3,2509.9,3.18731506]
[1751238613485,2.326,2510.6,2510.3,3.18680742]
[1751238613689,2.326,2510.6,2510.4,3.18665402]
[1751238613986,2.326,2510.6,2510.5,3.18661621]
[1751238614686,10.0,2510.9,2510.8,3.18623546]
[1751238614888,12.326,2511.3,2511.1,3.18584951]
[1751238615109,1.27185834,2511.2,2511.1,3.18584951]
[1751238615399,1.27185834,2511.2,2511.0,3.18592572]
[1751238615893,0.31856607,2511.2,2511.1,3.1858548]
[1751238616074,1.27156706,2511.2,2511.1,3.1858548]
[1751238616682,1.27156706,2511.2,2511.0,3.18592193]
[1751238617683,11.27156706,2511.2,2511.0,3.18592193]
[1751238617994,0.95274179,2511.1,2510.9,3.18609551]
[1751238618163,0.31856607,2511.2,2511.0,3.18598168]
[1751238620366,0.31856607,2511.2,2511.1,3.1858548]
[1751238620583,12.99408133,2511.2,2510.5,3.18653612]
[1751238620796,22.25393696,2511.1,2510.5,3.18649451]
[1751238621003,19.06800813,2511.1,2510.7,3.18625352]
[1751238621868,22.2538684,2511.1,2510.6,3.18643666]
[1751238622070,10.0,2510.9,2510.5,3.18654742]
[1751238622269,10.0,2510.9,2510.4,3.1866346]
[1751238622270,13.18615882,2510.9,2510.4,3.1866346]
[1751238622471,1.5971,2510.8,2510.4,3.1866346]
[1751238622994,0.1984,2510.5,2510.4,3.1866346]
[1751238625108,1.5638,2510.5,2509.9,3.18735652]
[1751238625311,12.72018,2510.5,2510.0,3.1871832]
[1751238625478,15.90681693,2510.5,2510.0,3.1871832]
[1751238625674,12.72018,2510.5,2509.6,7.53]
[1751238625885,12.72018,2510.5,2509.6,10.71766041]
[1751238626091,12.72018,2510.5,2509.4,4.76739922]
[1751238626295,3.18693424,2510.3,2509.6,3.187759]
[1751238626694,3.18693424,2510.3,2509.8,3.18748065]
[1751238627014,13.94858214,2510.4,2509.9,3.18736833]
[1751238627477,13.94858214,2510.4,2509.8,3.18740206]
[1751238627478,13.18687418,2510.3,2509.8,3.18740206]
[1751238628084,10.0,2510.3,2509.8,3.18740206]
[1751238628616,10.0,2510.3,2509.9,3.18735007]
[1751238629207,10.0,2510.3,2509.5,7.528]
[1751238629415,2.72018,2510.5,2510.2,3.18693026]
[1751238629416,1.5638,2510.5,2510.2,3.18693026]
[1751238629736,1.5638,2510.5,2510.1,3.1870671]
[1751238629893,10.0,2510.4,2510.1,3.1870671]
[1751238630633,10.0,2510.4,2509.6,3.187759]
[1751238630931,10.0,2510.7,2510.4,3.18674314]
[1751238632417,1.5311,2510.8,2510.5,3.1865117]
[1751238632626,4.80009006,2511.2,2510.3,1.5761]
[1751238632942,10.0,2511.1,2510.7,3.18629539]
[1751238633437,10.0,2511.1,2510.8,3.18621665]
[1751238633634,12.09430901,2511.2,2510.8,3.18621665]
[1751238633804,0.95303428,2511.1,2510.8,3.18621665]
[1751238634203,12.09430901,2511.2,2510.8,3.18621665]
[1751238635129,0.1984,2510.9,2510.8,3.18621665]
[1751238635633,2.326,2511.4,2510.4,3.38512629]
[1751238635634,2.326,2511.4,2511.1,3.18582343]
[1751238636129,12.326,2511.4,2511.1,3.18582343]
[1751238636534,2.326,2511.4,2511.1,3.18582343]
[1751238636833,3.18500747,2511.8,2511.5,3.18523494]
[1751238636834,1.553,2511.8,2511.5,3.18523494]
[1751238637033,1.553,2511.8,2511.2,3.18562709]
[1751238637034,9.48975737,2511.7,2511.2,3.18562709]
[1751238637347,9.48975737,2511.7,2510.7,7.517]
[1751238637348,10.0,2511.6,2511.5,3.1853474]
[1751238637936,10.0,2511.6,2511.4,3.18541099]
[1751238638630,13.18514504,2511.7,2511.2,3.18572674]
[1751238638936,1.79231583,2511.6,2511.2,3.18572674]
[1751238639431,0.55,2511.5,2510.3,1.6312]
[1751238639646,1.6457,2510.4,2509.4,0.001]
[1751238639827,10.0,2510.2,2509.4,1.6322]
[1751238640138,3.18701201,2510.2,2509.7,3.18754836]
[1751238641004,10.0,2510.3,2509.4,12.33219782]
[1751238641204,10.0,2510.3,2509.8,3.18738885]
[1751238641435,13.1869201,2510.3,2509.7,3.18755228]
[1751238641647,10.0,2510.3,2509.4,9.1442]
[1751238641820,19.30375737,2510.8,2509.9,3.18730242]
[1751238642020,10.0,2510.5,2510.0,3.18725099]
[1751238642244,3.18662585,2510.5,2510.0,3.18725099]
[1751238642612,13.18654134,2510.6,2510.0,3.18725099]
[1751238642811,10.0,2510.7,2510.3,3.18678741]
[1751238643108,2.6776216,2510.8,2509.7,0.55]
[1751238643311,2.6776216,2510.8,2509.6,1.5753]
[1751238643312,2.304,2510.8,2510.6,3.1864836]
[1751238643514,11.5075,2511.2,2510.7,3.18636236]
[1751238643845,1.70844,2511.0,2510.7,3.18636236]
[1751238644418,1.70844,2511.0,2510.9,3.18610856]
[1751238644937,1.70844,2511.0,2510.8,3.18619165]
[1751238645636,1.70844,2511.0,2510.9,3.18610856]
[1751238646814,1.5397,2510.9,2510.5,3.18655255]
[1751238647014,0.1984,2510.8,2510.5,3.18655255]
[1751238647242,0.1984,2510.6,2510.5,3.18655255]
[1751238647914,0.1984,2510.6,2510.2,3.18693605]
[1751238648110,0.1984,2510.6,2509.7,3.18756596]
[1751238648111,9.68815737,2510.3,2509.7,3.18756596]
[1751238648309,0.1992,2509.9,2509.7,3.1875672]
[1751238648539,0.1992,2509.9,2509.4,1.7948]
[1751238648540,0.1992,2509.9,2509.8,3.18750498]
[1751238649145,17.82225414,2510.3,2509.8,3.18750498]
[1751238649347,21.00912967,2510.3,2509.8,3.18750498]
[1751238649550,17.82225414,2510.3,2509.8,3.18750498]
[1751238649730,8.33249677,2510.3,2509.9,3.18737117]
[1751238649937,7.503,2510.3,2509.9,3.18737117]
[1751238651958,7.503,2510.3,2510.0,3.18716865]
[1751238652129,1.5783,2510.5,2510.0,3.18716865]
[1751238652453,10.0,2510.3,2510.0,3.18716865]
[1751238652820,9.802,2510.3,2510.0,3.18716865]
[1751238653021,10.0,2510.4,2510.0,3.18716865]
[1751238653523,9.802,2510.3,2510.0,3.18716865]
[1751238653723,21.3793,2510.5,2510.1,3.18712252]
[1751238653921,9.0743,2510.5,2509.5,3.73788603]
[1751238654144,9.801,2510.7,2509.7,3.18763198]
[1751238654336,9.801,2510.7,2510.4,3.18667349]
[1751238654533,9.801,2510.7,2510.0,3.18721648]
[1751238654534,1.6063,2510.5,2510.0,3.18721648]
[1751238654731,1.6063,2510.5,2509.8,3.18738047]
[1751238654937,7.495,2510.4,2510.0,3.18717898]
[1751238655644,7.495,2510.4,2510.1,3.18710992]
[1751238656237,7.495,2510.4,2510.0,3.18720065]
[1751238656848,11.4033,2510.5,2509.7,3.18752775]
[1751238657056,1.6063,2510.5,2509.6,1.5128]
[1751238657357,1.6063,2510.5,2510.2,3.18692457]
[1751238658160,12.305,2510.6,2510.2,3.18693661]
[1751238658529,12.305,2510.6,2510.3,3.18686574]
[1751238658940,3.18668211,2510.5,2510.0,3.18716513]
[1751238659161,0.1984,2510.1,2510.0,3.18716513]
[1751238659354,0.1984,2510.1,2509.9,3.18730081]
[1751238659568,13.18663494,2510.5,2510.0,3.18718473]
[1751238660575,0.1992,2510.0,2509.7,3.18761964]
[1751238660773,0.1992,2510.0,2509.9,3.18737798]
[1751238661823,11.70844,2511.0,2510.0,3.18725099]
[1751238662028,11.70844,2511.0,2510.7,3.18628447]
[1751238662228,11.70844,2511.0,2510.2,4.69166922]
[1751238662229,1.70844,2511.0,2510.2,4.69166922]
[1751238662441,0.1984,2510.8,2510.7,3.18636236]
[1751238663958,1.70844,2511.0,2510.9,3.18610856]
[1751238666745,1.70844,2511.0,2510.9,24.64481456]
[1751238667146,1.70844,2511.0,2510.9,38.55241456]
[1751238667666,1.70844,2511.0,2510.9,47.84210856]
[1751238668237,1.58689841,2511.0,2510.9,47.84210856]
[1751238668437,1.70844,2511.6,2511.5,35.3389474]
[1751238668662,1.70844,2511.6,2511.5,45.2913474]
[1751238668869,1.70844,2511.6,2511.5,55.2913474]
[1751238669540,1.70844,2512.2,2512.1,35.6751406]
[1751238669745,1.70844,2512.2,2512.1,52.8231866]
[1751238669939,1.70844,2512.2,2512.1,55.2995866]
[1751238672238,1.70844,2512.2,2512.1,28.8423766]
[1751238672441,1.70844,2512.2,2512.1,36.3103766]
[1751238672848,1.70844,2512.2,2512.1,36.0874066]
[1751238673168,1.70844,2512.2,2512.1,46.5390506]
[1751238673369,1.70844,2512.2,2512.1,40.3850506]
[1751238673574,1.70844,2512.2,2512.1,22.2661866]
[1751238673874,1.70844,2512.2,2512.1,22.2651866]
[1751238674240,1.70844,2512.2,2512.1,43.9638526]
[1751238674472,1.70844,2512.2,2512.1,37.2472926]
[1751238675543,1.70844,2512.2,2512.1,49.4707976]
[1751238675743,1.70844,2512.2,2512.1,44.2995466]
[1751238676444,1.70844,2512.2,2512.1,45.0405466]
[1751238676771,1.70844,2512.2,2512.1,27.5808566]
[1751238677473,1.70844,2512.2,2511.8,3.1849025]
[1751238677474,1.70844,2512.2,2511.8,1.5146]
[1751238677671,1.70844,2512.2,2512.1,3.1845866]
[1751238678043,1.70844,2512.2,2512.1,10.6405866]
[1751238678268,1.70844,2512.2,2512.1,7.455]
[1751238678570,2.19771569,2512.2,2511.5,13.18525701]
[1751238678771,1.6265,2512.1,2511.1,1.5933]
[1751238678981,1.6265,2512.1,2511.6,3.18514654]
[1751238678982,11.11697351,2512.1,2511.6,3.18514654]
[1751238679275,14.30157004,2512.1,2511.7,7.454]
[1751238679672,14.30157004,2512.1,2511.7,3.18507783]
[1751238679673,11.11697351,2512.1,2511.7,3.18507783]
[1751238679875,11.11697351,2512.1,2511.1,11.5933]
[1751238679876,1.6265,2512.1,2511.8,7.453]
[1751238680344,1.6265,2512.1,2511.9,3.18476415]
[1751238680547,1.6265,2512.1,2511.8,10.63790142]
[1751238680969,1.6265,2512.1,2511.9,3.18481959]
[1751238681182,1.6265,2512.1,2511.8,7.453]
[1751238681368,1.6265,2512.1,2512.0,3.18471337]
[1751238681555,1.70844,2512.2,2512.1,3.1845866]
[1751238681761,1.70844,2512.2,2512.1,10.6345866]
[1751238683374,1.70844,2512.2,2512.1,10.8329866]
[1751238683878,1.70844,2512.2,2512.1,10.6325866]
[1751238685291,1.70844,2512.2,2512.1,10.6305866]
[1751238685665,1.90684,2512.2,2512.1,10.6305866]
[1751238685860,1.70844,2512.2,2512.1,10.6305866]
[1751238686278,1.70844,2512.2,2512.1,11.1805866]
[1751238686483,1.70844,2512.2,2512.1,11.3789866]
[1751238688066,1.70844,2512.2,2512.1,10.8289866]
[1751238691284,1.70844,2512.2,2511.4,3.18541208]
[1751238691488,1.70844,2512.2,2511.3,1.5475]
[1751238691489,1.90684,2512.2,2511.9,3.18477405]
[1751238691684,1.90684,2512.2,2512.0,7.435]
[1751238691986,1.90684,2512.2,2512.1,3.1845866]
[1751238692282,1.70844,2512.2,2512.1,3.1845866]
[1751238692484,1.70844,2512.2,2512.1,3.3829866]